{"text_format":"3","workbook":"xlsx","n_sheets":2,"sheets":["אופן השימוש בחוברת עבודה זו","פנקס ציונים"],"not_rendered":{"defined_names":5},"read":"whole","date_system":"1900"}

{"sheet":"אופן השימוש בחוברת עבודה זו","index":0,"n_rows":10,"n_cols":2,"rows_kept":10}
[null,"הוראות"]
[null,"השתמש בגליון העבודה 'פנקס ציונים' כדי לחשב את הציונים, כאשר כל מטלה שווה מספר נקודות מוגדר. "]
[null,"הוראות: הקפד לשמור עותקי גיבוי של הציונים שלך."]
[null,"1. מלא את שם בית הספר, פרטי הכיתה, שמות התלמידים ומזהי התלמידים (אופציונלי).   "]
[null,"2. שנה את הטבלה 'ציון ו- GPA' בהתאם למערכת הניקוד שבה אתה משתמש בדרך כלל."]
[null,"3. מלא את שמות המטלות או המבחנים החל מתא G7, יחד עם האחוז היחסי של כל אחד מהם (לדוגמה, \"סופי\" או \"50%\"). "]
[null,"4. מלא את הציונים של כל תלמיד בכל מטלה או מבחן. העמודות 'ציון', 'ציון באות' ו- GPA מחושבות באופן אוטומטי, אך תוכל לעקוף אותן במידת הצורך. אופן חישוב הציונים, הממוצע והציון הסופי מלאים רק לאחר הזנת כל הציונים."]
[null,"השתמש בפקודה 'אזור הדפסה' בתפריט 'פריסת עמוד' אם ברצונך לשנות את האזור שיודפס."]
[null,"הציון, הציון באות וה- GPA חוקיים רק לאחר מילוי 100% מהמבחנים והמטלות. "]
[null,"הזן כל מטלה או מבחן ואת האחוז שלהם מהציון הכולל בתאים G7 עד W8."]

{"sheet":"פנקס ציונים","index":1,"n_rows":20,"n_cols":23,"rows_kept":20,"merged":[[5,1,5,5],[6,1,6,3],[6,4,6,5],[7,1,8,3],[7,4,7,5],[8,4,8,5],[15,1,15,5],[16,1,16,2],[17,1,17,2],[18,1,18,2],[19,1,19,2]]}
[null,"שם מוסד הלימודים שלך"]
[]
[{"$nulls":6},"ציון",{"v":0,"d":"0%"},{"v":0.6,"d":"60%"},{"v":0.63,"d":"63%"},{"v":0.67,"d":"67%"},{"v":0.7,"d":"70%"},{"v":0.73,"d":"73%"},{"v":0.77,"d":"77%"},{"v":0.8,"d":"80%"},{"v":0.83,"d":"83%"},{"v":0.87,"d":"87%"},{"v":0.9,"d":"90%"},{"v":0.93,"d":"93%"},{"v":0.97,"d":"97%"}]
[{"$nulls":6},"ציון באות","F","D-‎","D","D+‎","C-‎","C","C+‎","B-‎","B","B+‎","A-‎","A","A+‎"]
[{"$nulls":6},"GPA",0,0.67,1,1.33,1.67,2,2.33,2.67,3,3.33,3.67,4,4]
[null,"שם המורה"]
[null,"שיעור/פרוייקט",null,null,"שם מטלה או מבחן"]
[null,"שנה/סמסטר/רבעון",null,null,"אחוז (חייב להסתכם ב- 100%)"]
[{"$nulls":4},{"$f":"\"אחוז כולל: \"&SUM(G8:W8)*100&\"%\"","v":"אחוז כולל: 0%"}]
[null,"שם התלמיד","מזהה תלמיד","ציון","ציון באות","GPA","עמודה6","עמודה7","עמודה8","עמודה9","עמודה10","עמודה11","עמודה12","עמודה13","עמודה14","עמודה15","עמודה16","עמודה17","עמודה18","עמודה19","עמודה20","עמודה21","עמודה22"]
[{"$nulls":3},{"$f":"(IF(SUM(ציונים[[#This Row],[עמודה6]:[עמודה22]]),ROUND(SUMPRODUCT($G$8:$W$8,ציונים[[#This Row],[עמודה6]:[עמודה22]]),2),\"\"))","v":""},{"$f":"IF(ציונים[[#This Row],[ציון]]<>\"\",HLOOKUP(ציונים[[#This Row],[ציון]],טבלת_ציונים,2),\"\")","v":""},{"$f":"IF(ציונים[[#This Row],[ציון]]<>\"\",HLOOKUP(ציונים[[#This Row],[ציון]],טבלת_ציונים,3),\"\")","v":""}]
[{"$nulls":3},{"$f":"(IF(SUM(ציונים[[#This Row],[עמודה6]:[עמודה22]]),ROUND(SUMPRODUCT($G$8:$W$8,ציונים[[#This Row],[עמודה6]:[עמודה22]]),2),\"\"))","v":""},{"$f":"IF(ציונים[[#This Row],[ציון]]<>\"\",HLOOKUP(ציונים[[#This Row],[ציון]],טבלת_ציונים,2),\"\")","v":""},{"$f":"IF(ציונים[[#This Row],[ציון]]<>\"\",HLOOKUP(ציונים[[#This Row],[ציון]],טבלת_ציונים,3),\"\")","v":""}]
[{"$nulls":3},{"$f":"(IF(SUM(ציונים[[#This Row],[עמודה6]:[עמודה22]]),ROUND(SUMPRODUCT($G$8:$W$8,ציונים[[#This Row],[עמודה6]:[עמודה22]]),2),\"\"))","v":""},{"$f":"IF(ציונים[[#This Row],[ציון]]<>\"\",HLOOKUP(ציונים[[#This Row],[ציון]],טבלת_ציונים,2),\"\")","v":""},{"$f":"IF(ציונים[[#This Row],[ציון]]<>\"\",HLOOKUP(ציונים[[#This Row],[ציון]],טבלת_ציונים,3),\"\")","v":""}]
[{"$nulls":3},{"$f":"(IF(SUM(ציונים[[#This Row],[עמודה6]:[עמודה22]]),ROUND(SUMPRODUCT($G$8:$W$8,ציונים[[#This Row],[עמודה6]:[עמודה22]]),2),\"\"))","v":""},{"$f":"IF(ציונים[[#This Row],[ציון]]<>\"\",HLOOKUP(ציונים[[#This Row],[ציון]],טבלת_ציונים,2),\"\")","v":""},{"$f":"IF(ציונים[[#This Row],[ציון]]<>\"\",HLOOKUP(ציונים[[#This Row],[ציון]],טבלת_ציונים,3),\"\")","v":""}]
[{"$nulls":3},{"$f":"(IF(SUM(ציונים[[#This Row],[עמודה6]:[עמודה22]]),ROUND(SUMPRODUCT($G$8:$W$8,ציונים[[#This Row],[עמודה6]:[עמודה22]]),2),\"\"))","v":""},{"$f":"IF(ציונים[[#This Row],[ציון]]<>\"\",HLOOKUP(ציונים[[#This Row],[ציון]],טבלת_ציונים,2),\"\")","v":""},{"$f":"IF(ציונים[[#This Row],[ציון]]<>\"\",HLOOKUP(ציונים[[#This Row],[ציון]],טבלת_ציונים,3),\"\")","v":""}]
[]
[null,"סיכום לשיעור",null,"ציון","ציון באות","GPA","","","","","","","","","","",""]
[null," ממוצע",null,{"$f":"IFERROR(AVERAGE(ציונים[[#All],[ציון]]),0)","v":{"v":0,"d":"0.0%"}},{"$f":"IFERROR(HLOOKUP(D18,טבלת_ציונים,2),\"\")","v":"F"},{"$f":"IFERROR(AVERAGE(ציונים[[#All],[GPA]]),0)","v":0},"","","","","","","","","","","","","","","","",""]
[null," הציון הגבוה ביותר",null,{"$f":"IFERROR(MAX(ציונים[[#All],[ציון]]),0)","v":{"v":0,"d":"0.0%"}},{"$f":"IFERROR(HLOOKUP(D19,טבלת_ציונים,2),\"\")","v":"F"},{"$f":"IFERROR(MAX(ציונים[[#All],[GPA]]),0)","v":0},"","","","","","","","","","","","","","","","",""]
[null," הציון הנמוך ביותר",null,{"$f":"IFERROR(MIN(ציונים[[#All],[ציון]]),0)","v":{"v":0,"d":"0.0%"}},{"$f":"IFERROR(HLOOKUP(D20,טבלת_ציונים,2),\"\")","v":"F"},{"$f":"IFERROR(MIN(ציונים[[#All],[GPA]]),0)","v":0},"","","","","","","","","","","","","","","","",""]